bitfinex/quotes_ETHUSD_20251107
["timestamp","ask_amount","ask_price","bid_price","bid_amount"]
[1762527132131,0.002,3273.0,3271.6,0.405504]
[1762527132332,0.002,3273.0,3271.8,0.405504]
[1762527132534,0.002,3273.0,3270.8,0.459]
[1762527132758,0.002,3273.0,3271.1,0.405504]
[1762527133178,0.002,3273.0,3271.3,6.45627815]
[1762527133384,0.002,3273.0,3271.3,6.05077415]
[1762527133680,0.02929976,3273.0,3271.3,0.405504]
[1762527133882,0.4584,3272.5,3270.9,0.1566]
[1762527134245,0.02729976,3272.4,3270.9,0.1566]
[1762527134545,0.02729976,3272.4,3270.4,0.1566]
[1762527134854,0.02729976,3272.5,3270.6,1.259712]
[1762527135168,0.4584,3272.4,3270.5,0.8143534]
[1762527135370,0.4584,3272.4,3270.5,0.459]
[1762527135551,0.48569976,3272.4,3270.5,0.459]
[1762527135751,0.4584,3272.4,3270.6,3.284322]
[1762527136074,0.4584,3272.4,3270.8,0.405504]
[1762527136241,0.002,3272.6,3271.3,0.405504]
[1762527136442,0.002,3272.6,3271.5,0.405504]
[1762527136643,0.002,3272.6,3272.5,0.0591]
[1762527136842,0.002,3272.6,3272.5,0.86508557]
[1762527137079,0.002,3272.6,3272.5,16.40502257]
[1762527137284,0.002,3272.6,3272.5,5.368445]
[1762527137444,0.002,3272.6,3272.5,0.923604]
[1762527137645,0.002,3272.6,3272.5,3.121237]
[1762527137880,0.002,3273.0,3272.5,10.96096115]
[1762527138045,0.002,3273.0,3272.7,0.405504]
[1762527138245,0.002,3273.0,3272.9,0.405504]
[1762527138489,0.002,3273.0,3272.9,3.944677]
[1762527138657,0.002,3273.0,3272.9,15.254619]
[1762527138856,0.4584,3275.3,3273.3,1.665216]
[1762527139085,0.4584,3275.3,3273.2,6.05077415]
[1762527139086,0.6389,3275.2,3273.5,1.665216]
[1762527139293,0.1825,3275.8,3273.7,1.665216]
[1762527139588,0.1825,3275.8,3274.0,0.405504]
[1762527139589,0.0012,3275.5,3274.0,0.405504]
[1762527139790,0.0012,3275.5,3273.5,0.405504]
[1762527139791,0.4596,3275.5,3273.5,0.405504]
[1762527139961,0.02729976,3275.4,3273.7,1.665216]
[1762527140164,0.02729976,3275.4,3273.7,0.405504]
[1762527140473,0.0012,3275.5,3273.9,1.665216]
[1762527140679,0.0012,3275.5,3273.4,1.718712]
[1762527140680,0.02849976,3275.5,3273.4,1.718712]
[1762527140860,0.0012,3275.5,3274.1,0.405504]
[1762527141186,0.0012,3275.5,3274.3,0.405504]
[1762527141394,0.0012,3275.5,3274.1,0.405504]
[1762527141873,0.0012,3275.5,3274.3,1.665216]
[1762527142186,0.0012,3275.5,3274.5,0.405504]
[1762527142351,0.0012,3275.5,3275.4,6.61287815]
[1762527142556,0.0012,3275.5,3275.4,21.53890275]
[1762527142750,0.002,3275.8,3275.4,21.53890275]
[1762527142751,0.002,3275.8,3275.5,2.4079466]
[1762527142953,0.002,3275.8,3275.7,1.665216]
[1762527143156,0.005,3276.9,3275.7,1.665216]
[1762527143350,0.005,3276.9,3275.4,6.20737415]
[1762527143351,0.005,3276.9,3275.8,7.63869989]
[1762527143584,0.005,3276.9,3275.8,1.665216]
[1762527143785,0.005,3276.9,3275.8,0.405504]
[1762527143969,0.1805,3276.7,3275.8,0.405504]
[1762527144984,0.4634,3276.9,3275.8,0.405504]
[1762527145493,0.1805,3276.7,3275.8,0.405504]
[1762527145664,0.1805,3276.7,3274.7,1.718712]
[1762527145665,0.02729976,3276.6,3274.7,0.459]
[1762527145870,0.002,3276.1,3274.7,0.459]
[1762527146053,0.002,3276.1,3274.8,0.405504]
[1762527146458,0.002,3276.1,3275.2,0.405504]
[1762527146687,0.002,3276.1,3275.4,0.405504]
[1762527146869,0.002,3276.1,3275.5,0.03052969]
[1762527147069,0.4604,3275.9,3275.2,0.405504]
[1762527147272,0.002,3275.9,3275.4,0.405504]
[1762527147474,0.002,3275.9,3275.6,1.665216]
[1762527147669,0.002,3275.9,3275.4,0.405504]
[1762527147965,0.002,3275.9,3275.3,0.405504]
[1762527148274,0.002,3275.9,3275.6,0.405504]
[1762527148476,0.002,3275.9,3275.8,7.71599015]
[1762527148664,0.002,3275.9,3275.8,0.557504]
[1762527149106,0.002,3275.9,3275.8,3.565125]
[1762527149290,0.002,3275.9,3275.8,1.4038812]
[1762527149601,0.002,3275.9,3275.8,2.124216]
[1762527149804,0.005,3276.9,3276.0,0.405504]
[1762527149988,0.005,3276.9,3276.7,0.405504]
[1762527150192,0.005,3276.9,3276.8,1.2284461]
[1762527150496,0.005,3276.9,3276.8,6.1356241]
[1762527150705,0.48345555,3278.9,3277.1,0.405504]
[1762527150899,0.1805,3278.3,3277.1,0.405504]
[1762527151074,0.48345555,3278.9,3277.3,0.405504]
[1762527151280,0.94185555,3278.9,3277.3,0.405504]
[1762527151602,0.005,3278.9,3277.5,0.405504]
[1762527151814,0.005,3278.9,3277.7,1.665216]
[1762527151963,0.005,3278.9,3278.2,0.405504]
[1762527152160,0.005,3278.9,3278.2,0.864504]
[1762527152395,0.005,3278.9,3278.2,0.405504]
[1762527152582,0.005,3278.9,3278.4,0.405504]
[1762527152991,0.005,3278.9,3278.3,0.405504]
[1762527153395,0.005,3278.9,3277.5,1.665216]
[1762527153596,0.005,3278.9,3277.3,0.459]
[1762527153904,0.005,3278.9,3277.6,0.405504]
[1762527154270,0.005,3278.9,3277.7,6.539773]
[1762527154508,0.005,3278.9,3277.7,0.405504]
[1762527154799,0.005,3278.9,3277.9,1.665216]
[1762527154999,0.005,3278.9,3278.1,0.405504]
[1762527155207,0.005,3278.9,3278.6,0.405504]
[1762527155504,0.005,3279.9,3279.2,1.259712]
[1762527155664,0.005,3279.9,3279.3,0.405504]
[1762527155867,0.005,3279.9,3279.5,0.405504]
[1762527156309,0.503,3279.9,3278.7,0.1529]
[1762527156463,0.503,3279.9,3278.8,0.405504]
[1762527156809,0.503,3279.9,3278.5,0.405504]
[1762527156972,0.005,3279.9,3279.0,0.405504]
[1762527157172,0.005,3279.9,3278.7,0.405504]
[1762527157369,0.005,3279.9,3279.2,1.665216]
[1762527157692,0.005,3279.9,3279.2,1.259712]
[1762527157891,0.005,3279.9,3279.3,0.405504]
[1762527158601,0.005,3279.9,3279.5,0.405504]
[1762527159104,0.005,3279.9,3279.6,0.405504]
[1762527159305,0.005,3279.9,3278.8,0.4931]
[1762527159507,0.005,3279.9,3278.4,6.05077415]
[1762527159666,0.005,3279.9,3278.1,0.4931]
[1762527160079,0.455,3279.9,3278.4,0.405504]
[1762527160280,0.455,3279.9,3278.1,0.4931]
[1762527160695,0.005,3279.9,3278.4,0.896904]
[1762527161404,0.005,3279.9,3278.4,0.405504]
[1762527161575,0.005,3279.9,3278.6,1.665216]
[1762527161771,0.005,3279.9,3278.8,1.665216]
[1762527161970,0.005,3280.9,3279.0,1.665216]
[1762527162177,0.0042,3280.9,3280.8,0.507304]
[1762527162573,0.0042,3280.9,3280.8,1.3860812]
[1762527162908,0.0042,3280.9,3280.4,0.1018]
[1762527163072,0.0042,3280.9,3280.5,0.405504]
[1762527163480,0.0042,3280.9,3280.1,0.405504]
[1762527163800,0.002,3280.3,3280.2,0.43598994]
[1762527164001,0.002,3280.3,3280.2,1.665216]
[1762527164578,0.002,3280.3,3280.0,0.1018]
[1762527164778,0.002,3280.3,3280.1,0.405504]
[1762527165212,0.002,3280.6,3280.3,0.405504]
[1762527165412,0.002,3280.6,3280.5,0.405504]
[1762527166089,0.002,3280.6,3280.1,0.405504]
[1762527166719,0.002,3280.6,3280.2,0.4914]
[1762527166876,0.002,3280.6,3280.3,0.405504]
[1762527167282,0.005,3281.9,3280.7,1.665216]
[1762527167495,0.1938,3286.5,3280.4,0.52188408]
[1762527167496,0.1938,3283.8,3281.0,0.711804]
[1762527167718,0.6438,3284.2,3282.8,0.498104]
[1762527168098,0.6438,3284.2,3282.8,0.405504]
[1762527168301,0.455,3282.9,3281.7,0.02]
[1762527168517,0.005,3282.9,3281.9,0.405504]
[1762527168717,0.005,3282.9,3281.7,0.02]
[1762527169020,0.005,3282.9,3281.8,5.811533]
[1762527169323,0.005,3282.9,3282.0,1.259712]
[1762527169618,0.005,3282.9,3282.8,0.557504]
[1762527169823,0.005,3282.9,3282.8,0.405504]
[1762527170011,0.005,3282.9,3282.1,0.405504]
[1762527170385,0.005,3282.9,3282.3,0.405504]
[1762527170924,0.005,3282.9,3281.7,0.02]
[1762527171140,0.005,3282.9,3282.5,0.405504]
[1762527171520,0.005,3282.9,3282.6,0.405504]
[1762527171714,0.005,3282.9,3282.7,0.03046272]
[1762527171919,0.005,3282.9,3282.0,0.405504]
[1762527172120,0.005,3282.9,3282.2,0.405504]
[1762527172340,0.005,3282.9,3282.4,1.665216]
[1762527172647,0.005,3282.9,3282.6,1.665216]
[1762527172842,0.005,3282.9,3282.8,1.665216]
[1762527173049,0.005,3282.9,3282.8,2.932108]
[1762527173256,0.005,3282.9,3282.8,0.896904]
[1762527173543,0.005,3282.9,3282.8,2.156616]
[1762527173728,0.005,3283.9,3283.0,0.405504]
[1762527174041,0.005,3283.9,3283.2,1.665216]
[1762527174242,0.005,3283.9,3283.4,0.405504]
[1762527174409,0.005,3283.9,3283.8,0.558404]
[1762527175543,0.005,3283.9,3282.8,0.405504]
[1762527177208,0.005,3283.9,3282.7,0.1529]
[1762527177405,0.005,3283.9,3282.8,0.0304618]
[1762527177704,0.005,3283.9,3282.7,3.04626232]
[1762527177906,0.005,3283.9,3282.8,0.3873772]
[1762527178207,0.005,3283.9,3283.1,0.405504]
[1762527178409,0.005,3283.9,3282.6,0.405504]
[1762527178616,0.455,3283.9,3282.0,2.2913892]
[1762527178809,3.04534795,3283.7,3282.5,0.3873772]
[1762527179148,3.04534795,3283.7,3280.8,7.31824987]
[1762527179149,3.04600729,3283.0,3281.0,0.1509]
[1762527179350,3.04636983,3282.6,3281.0,0.1509]
[1762527179561,0.45,3282.5,3281.0,0.1509]
[1762527179723,0.45,3282.5,3282.4,0.152]
[1762527180112,0.45,3282.5,3280.0,0.1018]
[1762527180312,0.45,3282.5,3280.6,0.4914]
[1762527180527,0.1938,3282.9,3282.4,0.152]
[1762527180727,3.04924369,3284.9,3281.5,1.259712]
[1762527180728,0.1938,3283.4,3281.5,1.259712]
[1762527180928,0.1938,3283.4,3281.1,0.83967007]
[1762527180929,0.1938,3283.4,3283.1,0.152]
[1762527181128,0.6438,3283.4,3281.8,0.8410689]
[1762527181334,0.6438,3283.4,3281.9,0.1529]
[1762527181659,0.47729976,3283.3,3280.4,0.6423]
[1762527181836,0.47729976,3283.3,3280.6,0.77819345]
[1762527182151,0.45,3283.3,3280.5,0.34262855]
[1762527182447,0.45,3283.3,3281.4,0.405504]
[1762527182648,0.45,3283.3,3281.6,1.665216]
[1762527182812,0.1938,3283.4,3281.6,0.405504]
[1762527183010,0.457,3283.9,3282.1,1.665216]
[1762527183248,0.457,3283.9,3281.7,5.50449056]
[1762527183249,0.457,3283.9,3282.4,0.405504]
[1762527183451,0.457,3283.9,3281.8,0.405504]
[1762527183651,0.457,3283.9,3282.0,0.405504]
[1762527183837,0.007,3283.9,3282.5,0.405504]
[1762527184157,0.007,3283.9,3282.5,3.04645416]
[1762527184343,0.007,3283.9,3282.7,1.259712]
[1762527184516,0.007,3283.9,3283.0,0.405504]
[1762527184860,0.007,3283.9,3283.6,0.405504]
[1762527185018,0.0062,3283.9,3283.8,1.665216]
[1762527185219,0.005,3284.9,3284.0,0.405504]
[1762527185455,0.005,3284.9,3284.8,3.54552937]
[1762527185641,0.005,3284.9,3284.8,2.1964809]
[1762527185838,0.005,3284.9,3284.8,6.693479]
[1762527186053,0.005,3284.9,3284.8,10.23568037]
[1762527186256,0.005,3284.9,3284.8,10.077147]
[1762527186419,0.005,3284.9,3284.8,4.331735]
[1762527186615,0.005,3285.9,3285.0,0.405504]
[1762527186855,0.005,3285.9,3285.4,0.405504]
[1762527187219,0.467,3285.8,3284.2,0.5615]
[1762527187556,0.467,3285.8,3283.1,7.31824987]
[1762527187557,0.467,3285.8,3283.5,1.259712]
[1762527187726,0.467,3285.8,3283.7,1.259712]
[1762527187926,0.467,3285.8,3283.9,1.259712]
[1762527188126,0.467,3285.8,3284.0,2.48982266]
[1762527188328,0.467,3285.8,3284.3,0.405504]
[1762527188527,0.467,3285.8,3284.1,0.0957]
[1762527188855,0.467,3285.8,3284.2,0.405504]
[1762527189019,0.467,3285.8,3283.6,1.821212]
[1762527189218,0.467,3285.8,3283.8,1.259712]
[1762527189472,0.467,3285.8,3284.0,1.259712]
[1762527189720,3.04355985,3285.7,3283.6,0.0957]
[1762527189949,3.51041933,3285.8,3283.8,1.259712]
[1762527190147,0.467,3285.7,3283.9,0.405504]
[1762527190351,3.51053028,3285.7,3283.6,0.0957]
[1762527190553,3.51053028,3285.7,3283.1,0.9063649]
[1762527190554,3.04364222,3285.6,3283.1,0.005]
[1762527190754,0.467,3285.6,3283.1,0.005]
[1762527190955,0.467,3285.5,3283.2,3.16959408]
[1762527191156,0.467,3285.5,3283.5,0.405504]
[1762527191378,0.467,3285.5,3284.0,0.405504]
[1762527191660,0.467,3285.5,3284.2,1.665216]
[1762527191859,0.467,3285.4,3284.1,0.0957]
[1762527192070,0.467,3285.4,3283.6,0.4355649]
[1762527192071,0.467,3285.4,3283.8,3.0451792]
[1762527192369,0.005,3285.9,3284.3,0.405504]
[1762527192573,0.005,3285.9,3284.1,0.405504]
[1762527192574,3.04349149,3285.7,3284.1,0.405504]
[1762527192779,0.467,3285.8,3283.1,0.005]
[1762527192959,0.1827,3284.2,3283.1,0.005]
[1762527193119,0.1827,3283.2,3283.1,0.005]
[1762527193319,0.1827,3283.2,3282.1,0.005]
[1762527193666,3.04599451,3283.0,3282.1,0.005]
[1762527193849,0.467,3283.1,3282.1,0.005]
[1762527194046,3.04609606,3282.9,3282.1,0.005]
[1762527194252,3.04609597,3282.9,3282.1,0.005]
[1762527194432,0.467,3282.8,3282.1,0.005]
[1762527194861,0.1827,3283.2,3282.1,0.005]
[1762527195058,0.49429976,3283.1,3282.1,0.005]
[1762527195264,0.467,3283.1,3282.1,0.005]
[1762527195422,3.04615042,3282.9,3282.1,0.005]
[1762527195622,0.49429976,3283.1,3282.1,0.005]
[1762527195860,3.51292017,3283.1,3282.1,0.005]
[1762527196022,3.04634419,3282.7,3282.1,0.005]
[1762527196224,3.04651967,3282.5,3282.1,0.005]
[1762527196424,0.6497,3282.6,3282.1,0.005]
[1762527196658,0.49429976,3282.5,3281.1,0.005]
[1762527196824,3.54080366,3282.5,3281.1,0.005]
[1762527197029,0.1827,3281.2,3281.1,0.005]
[1762527197439,0.6497,3281.2,3281.1,0.005]
[1762527197638,0.467,3281.7,3281.1,0.005]
[1762527197838,0.467,3282.3,3281.1,0.005]
[1762527198762,0.467,3283.0,3281.3,1.259712]
[1762527198965,0.005,3284.9,3281.6,0.405504]
[1762527199163,0.467,3283.6,3281.8,0.405504]
[1762527199331,0.467,3283.6,3281.2,0.4658]
[1762527199332,0.467,3283.6,3281.6,0.405504]
[1762527199527,0.467,3283.6,3281.5,1.259712]
[1762527199528,0.02729976,3283.1,3281.1,0.005]
[1762527199729,0.49429976,3283.0,3281.1,0.005]
[1762527199934,3.04695965,3282.0,3281.1,0.005]
[1762527200229,0.1827,3282.9,3281.1,0.005]
[1762527200429,3.04665088,3282.3,3281.1,0.005]
[1762527200665,0.467,3282.8,3281.3,0.405504]
[1762527200884,0.467,3282.8,3281.5,1.665216]
[1762527201083,0.467,3282.8,3282.7,0.152]
[1762527201287,0.1827,3282.9,3282.7,0.152]
[1762527201582,0.1827,3283.7,3282.8,0.405504]
[1762527201941,0.1827,3282.9,3281.2,0.4658]
[1762527202145,0.467,3283.6,3281.6,0.405504]
[1762527202341,0.005,3283.9,3282.5,3.04645849]
[1762527202586,0.005,3283.9,3282.7,1.259712]
[1762527202788,0.005,3283.9,3283.1,1.259712]
[1762527202959,0.005,3283.9,3283.0,0.405504]
[1762527203161,0.005,3283.9,3283.3,0.405504]
[1762527203372,0.467,3283.8,3282.2,0.4658]
[1762527203558,0.02729976,3283.7,3281.2,0.4658]
[1762527203884,3.51226208,3283.8,3281.2,23.341706]
[1762527204184,0.467,3283.7,3281.4,1.259712]
[1762527204382,0.467,3283.7,3281.8,0.405504]
[1762527204588,0.467,3283.7,3282.0,1.665216]
[1762527204788,0.467,3283.7,3281.7,1.259712]
[1762527204947,0.467,3283.7,3280.7,0.001]
[1762527205150,3.04645016,3282.6,3280.7,0.001]
[1762527205377,3.04639359,3282.6,3280.7,0.001]
[1762527205687,0.67699976,3282.5,3280.7,0.001]
[1762527206046,0.467,3282.4,3280.7,0.03148129]
[1762527206245,0.467,3282.4,3280.7,0.001]
[1762527207058,0.02729976,3282.3,3280.7,0.001]
[1762527207484,0.467,3282.2,3280.7,0.001]
[1762527207789,3.51396538,3282.0,3280.7,0.001]
[1762527207974,0.467,3282.0,3280.7,0.001]
[1762527208324,0.1827,3282.5,3280.1,0.005]
[1762527208325,0.49349976,3281.9,3280.1,0.005]
[1762527208475,0.49349976,3281.9,3279.1,0.005]
[1762527208476,3.04875784,3280.1,3279.1,0.005]
[1762527208675,0.02649976,3280.0,3279.1,0.005]
[1762527208914,0.49349976,3280.0,3279.1,0.005]
[1762527209272,0.467,3280.0,3279.1,0.005]
[1762527210176,0.02649976,3279.9,3279.1,0.005]
[1762527210406,0.02649976,3281.2,3279.2,30.0957]
[1762527210607,0.74969999,3282.5,3279.3,31.58752383]
[1762527210608,0.467,3282.2,3279.3,31.58752383]
[1762527210809,0.467,3282.2,3280.4,0.405504]
[1762527210979,0.467,3282.2,3279.5,0.405504]
[1762527210980,0.005,3281.9,3279.5,0.405504]
[1762527211174,0.005,3281.9,3279.8,0.405504]
[1762527211368,0.005,3281.9,3280.2,0.405504]
[1762527211616,0.005,3281.9,3279.2,0.0957]
[1762527211617,0.005,3281.9,3280.4,0.405504]
[1762527211814,0.472,3281.9,3281.8,0.152]
[1762527212171,0.005,3281.9,3281.8,0.405504]
[1762527212372,0.005,3281.9,3280.8,0.405504]
[1762527212718,0.005,3281.9,3281.1,0.405504]
[1762527212920,0.005,3281.9,3281.4,0.405504]
[1762527213121,0.005,3281.9,3281.5,0.405504]
[1762527213275,0.005,3281.9,3280.2,0.4658]
[1762527213475,0.005,3281.9,3280.7,1.665216]
[1762527213704,0.005,3281.9,3280.9,0.405504]
[1762527214102,0.005,3281.9,3280.6,0.79206037]
[1762527214316,0.005,3281.9,3280.8,1.665216]
[1762527214509,0.005,3281.9,3280.5,0.4658]
[1762527214510,0.005,3281.9,3280.6,0.405504]
[1762527214704,0.005,3281.9,3280.9,0.79206037]
[1762527214884,0.005,3281.9,3281.0,0.38655637]
[1762527215086,0.005,3281.9,3281.5,0.405504]
[1762527215297,0.005,3281.9,3281.2,1.259712]
[1762527215298,0.005,3281.9,3281.7,0.405504]
[1762527215480,0.005,3281.9,3281.8,1.665216]
[1762527216200,0.005,3281.9,3281.0,0.38655637]
[1762527216400,0.005,3281.9,3280.4,0.1559]
[1762527216401,0.4633,3281.9,3280.4,0.1559]
[1762527216629,0.02649976,3281.8,3279.2,0.0957]
[1762527216836,0.4633,3281.9,3279.1,0.005]
[1762527217002,0.1883,3279.3,3279.1,0.005]
[1762527217333,3.04952427,3279.2,3279.1,0.005]
[1762527217488,0.48479976,3279.2,3278.9,0.001]
[1762527217832,0.4583,3279.1,3278.9,0.001]
[1762527218715,0.1883,3279.3,3278.9,0.001]
[1762527219201,0.6466,3279.7,3278.9,0.001]
[1762527219402,0.02649976,3281.0,3278.9,0.001]
[1762527219604,3.047294,3281.6,3278.9,0.001]
[1762527219804,0.005,3280.9,3278.9,0.001]
[1762527220002,3.04887268,3280.0,3278.9,0.001]
[1762527220324,3.04880211,3280.0,3278.9,0.001]
[1762527220512,0.4793,3279.9,3278.9,0.001]
[1762527220715,3.04967702,3279.1,3278.9,0.001]
[1762527220924,0.02649976,3279.6,3278.5,0.001]
[1762527221106,0.1913,3278.6,3278.5,0.001]
[1762527221313,0.6706,3279.5,3278.5,0.001]
[1762527221639,3.04978616,3279.0,3278.5,0.001]
[1762527221936,0.4793,3279.4,3278.5,0.001]
[1762527222136,0.4793,3279.3,3278.5,0.001]
[1762527222314,0.4793,3279.3,3279.2,0.152]
[1762527222642,0.4793,3279.3,3278.5,0.001]
[1762527222804,0.4793,3279.3,3278.2,0.001]
[1762527222805,0.152,3278.7,3278.2,0.001]
[1762527222999,0.152,3279.0,3278.5,0.152]
[1762527223341,3.20177264,3279.0,3278.5,0.152]
[1762527223536,0.4793,3278.9,3278.2,0.001]
[1762527223722,0.4793,3278.9,3278.6,0.152]
[1762527223908,0.4793,3278.9,3278.2,0.001]
[1762527224109,0.4793,3278.9,3278.6,0.152]
[1762527224308,3.55568045,3278.9,3278.6,0.152]
[1762527224512,3.05045451,3278.2,3278.1,0.005]
[1762527224709,3.05045451,3278.2,3276.1,0.005]
[1762527224710,0.02649976,3278.2,3276.1,0.005]
[1762527225038,0.1913,3277.2,3276.1,0.005]
[1762527225400,0.6706,3277.2,3276.1,0.005]
[1762527225745,3.72198532,3277.2,3276.1,0.005]
[1762527226040,1.37442633,3277.2,3276.1,0.005]
[1762527226240,0.4793,3277.1,3276.1,0.005]
[1762527226740,0.1913,3277.7,3276.2,3.78296437]
[1762527226945,0.4786682,3278.3,3276.5,0.405504]
[1762527227101,0.4793,3278.5,3276.7,1.665216]
[1762527227303,0.4793,3278.5,3276.9,0.405504]
[1762527227501,0.4793,3278.5,3277.0,0.55302216]
[1762527227747,0.4793,3278.5,3276.4,0.405504]
[1762527227953,0.4793,3278.5,3276.4,1.665216]
[1762527228240,0.02649976,3278.4,3276.6,0.405504]
[1762527228451,3.05026842,3278.4,3276.7,2.292502]
[1762527228747,3.05026842,3278.4,3276.3,0.4936]
[1762527228748,0.50579976,3278.3,3276.3,0.405504]
[1762527228955,0.02649976,3278.2,3276.3,0.405504]
[1762527229100,0.02649976,3278.1,3276.4,4.19117]
[1762527229301,0.02649976,3278.0,3276.1,0.005]
[1762527229612,0.4793,3278.8,3276.2,7.155263]
[1762527229813,3.05109102,3277.6,3276.2,0.38655637]
[1762527230003,3.05109102,3277.6,3276.1,0.005]
[1762527230199,3.52929246,3278.7,3276.1,0.005]
[1762527230200,0.4793,3277.5,3276.1,0.005]
[1762527230647,0.4785,3277.5,3276.1,0.005]
[1762527230941,0.4785,3277.5,3276.3,1.665216]
[1762527230942,0.35295444,3277.5,3276.3,1.665216]
[1762527231128,3.04991225,3278.8,3276.5,0.405504]
[1762527231332,0.005,3278.9,3276.7,0.405504]
[1762527231504,0.005,3278.9,3276.4,0.405504]
[1762527231703,0.005,3278.9,3276.3,0.4936]
[1762527231704,3.0503788,3278.3,3276.5,1.259712]
[1762527231905,3.05060319,3278.1,3276.6,0.405504]
[1762527232138,0.005,3278.9,3276.3,1.259712]
[1762527232139,0.3077103,3278.0,3276.4,0.405504]
[1762527232442,3.05052942,3278.2,3276.6,0.405504]
[1762527232625,0.4793,3278.8,3276.4,0.405504]
[1762527232801,0.02649976,3278.7,3276.3,0.405504]
[1762527233009,0.02649976,3278.7,3275.2,0.4936]
[1762527233327,0.4793,3278.6,3276.1,0.1717]
[1762527233531,3.05026842,3278.4,3276.1,0.005]
[1762527233703,3.05106251,3277.6,3276.1,0.005]
[1762527233906,3.05176527,3276.8,3276.1,0.005]
[1762527234106,3.05182247,3276.8,3276.1,0.005]
[1762527234307,0.6706,3276.7,3276.1,0.005]
[1762527234741,0.4793,3276.6,3276.4,0.152]
[1762527235047,0.1913,3277.4,3276.2,0.405504]
[1762527235203,0.1913,3277.4,3276.3,0.03052223]
[1762527235404,0.1913,3277.4,3276.2,0.405504]
[1762527235730,0.4793,3277.3,3276.1,0.410504]
[1762527235934,0.4793,3277.3,3276.1,0.577204]
[1762527236156,0.4793,3277.3,3276.2,5.997426]
[1762527236446,1.264712,3278.9,3276.4,0.405504]
[1762527236447,0.4793,3278.1,3276.4,0.405504]
[1762527236650,0.4793,3278.1,3276.3,0.79206037]
[1762527236853,0.4793,3278.1,3276.5,0.405504]
[1762527237208,0.4793,3278.1,3276.7,0.405504]
[1762527237409,3.52990883,3278.1,3276.8,0.2477699]
[1762527237760,3.05004303,3278.7,3276.9,6.483862]
[1762527237761,0.02649976,3278.6,3276.9,6.483862]
[1762527238056,0.4813,3278.7,3277.1,0.405504]
[1762527238345,0.4813,3278.7,3277.3,0.405504]
[1762527238550,0.4813,3278.7,3277.4,0.03051199]
[1762527238950,0.4813,3278.7,3277.5,0.405504]
[1762527239153,0.4813,3278.7,3277.5,0.0986]
[1762527239319,0.4813,3278.7,3277.5,0.504104]
[1762527239737,0.002,3278.7,3277.6,3.48219912]
[1762527239957,0.4813,3278.7,3277.7,0.39863031]
[1762527240258,0.4813,3278.7,3276.8,0.405504]
[1762527240424,0.4813,3278.7,3276.1,0.1717]
[1762527240425,3.05017538,3278.5,3276.1,0.1717]
[1762527240759,0.4813,3278.7,3276.3,1.259712]
[1762527241051,0.002,3278.7,3276.7,1.259712]
[1762527241221,0.002,3278.7,3277.5,3.45660923]
[1762527241422,0.002,3278.7,3277.6,7.86963341]
[1762527241632,0.002,3278.7,3277.8,1.259712]
[1762527241812,0.002,3278.7,3278.5,0.405504]
[1762527242016,0.002,3278.7,3278.6,8.01743035]
[1762527242355,0.002,3279.4,3278.9,0.405504]
[1762527242658,0.002,3279.4,3279.1,0.405504]
[1762527242823,0.002,3279.4,3279.2,3.614942]
[1762527243006,0.002,3279.4,3279.3,2.5608606]
[1762527243209,0.005,3280.9,3279.9,0.405504]
[1762527243564,0.005,3280.9,3280.3,0.405504]
[1762527243765,0.005,3280.9,3280.0,0.34327007]
[1762527244059,0.4793,3280.8,3279.4,0.405504]
[1762527244260,0.4793,3280.8,3279.6,1.665216]
[1762527244546,0.005,3280.9,3279.8,1.665216]
[1762527244751,0.005,3280.9,3280.8,3.04803706]
[1762527244936,0.005,3282.9,3281.2,0.405504]
[1762527245141,0.005,3282.9,3281.4,1.665216]
[1762527245344,0.493,3282.6,3281.6,0.405504]
[1762527245509,0.493,3282.6,3281.5,2.547651]
[1762527245510,0.005,3282.9,3281.8,0.405504]
[1762527245952,0.005,3282.9,3281.3,0.405504]
[1762527246152,0.005,3282.9,3281.8,8.06313845]
[1762527246377,0.005,3282.9,3281.8,1.665216]
[1762527246694,3.04719937,3281.8,3279.7,6.82718313]
[1762527246998,0.6947,3281.9,3279.8,7.09014831]
[1762527247288,0.005,3281.9,3280.6,0.405504]
[1762527247449,0.005,3281.9,3280.8,1.259712]
[1762527247650,0.005,3281.9,3281.2,1.665216]
[1762527247969,0.005,3281.9,3281.4,1.665216]
[1762527248179,0.005,3281.9,3281.6,0.405504]
[1762527248492,0.005,3281.9,3281.3,0.405504]
[1762527248696,0.005,3281.9,3281.4,2.25734]
[1762527248852,0.005,3281.9,3281.5,0.43597786]
[1762527249049,0.005,3281.9,3281.7,0.405504]
[1762527249379,0.005,3281.9,3281.8,14.77028761]
[1762527249692,0.005,3282.9,3282.8,0.405504]
[1762527250003,0.005,3282.9,3281.9,1.259712]
[1762527250004,0.005,3282.9,3282.2,0.36178137]
[1762527250303,0.005,3282.9,3281.8,0.405504]
[1762527250454,0.005,3282.9,3282.0,1.665216]
[1762527250650,0.005,3282.9,3282.2,1.665216]